[Event "*** SCC Grand Prix: Titled Tuesday Blitz"]
[Site "Chess.com"]
[Date "2020.07.07"]
[Round "3"]
[White "Savva09022009"]
[Black "eljanov"]
[Result "0-1"]
[WhiteElo "2454"]
[BlackElo "2873"]
[TimeControl "180+1"]
[EndTime "10:28:09 PDT"]
[Termination "eljanov won by resignation"]

1. d4 {[%clk 0:03:00.9]} 1... Nf6 {[%clk 0:02:58]} 2. Nc3 {[%clk 0:03:01.2]}
2... d5 {[%clk 0:02:57.5]} 3. Bf4 {[%clk 0:03:01.5]} 3... e6 {[%clk 0:02:53.8]}
4. e3 {[%clk 0:03:00.7]} 4... a6 {[%clk 0:02:51.2]} 5. Nf3 {[%clk 0:03:00.6]}
5... c5 {[%clk 0:02:48.9]} 6. dxc5 {[%clk 0:02:59.2]} 6... Bxc5 {[%clk
0:02:46.9]} 7. Bd3 {[%clk 0:02:59.4]} 7... Nc6 {[%clk 0:02:40]} 8. O-O {[%clk
0:02:58.6]} 8... Qe7 {[%clk 0:02:28.9]} 9. e4 {[%clk 0:02:53]} 9... d4 {[%clk
0:02:28.7]} 10. Ne2 {[%clk 0:02:51.7]} 10... e5 {[%clk 0:02:28.7]} 11. Bg5
{[%clk 0:02:51.9]} 11... h6 {[%clk 0:02:24.6]} 12. Bh4 {[%clk 0:02:47.6]} 12...
Bg4 {[%clk 0:02:10.7]} 13. Nd2 {[%clk 0:02:40]} 13... g5 {[%clk 0:02:11.3]} 14.
Bg3 {[%clk 0:02:34.5]} 14... h5 {[%clk 0:01:53.4]} 15. h3 {[%clk 0:02:29.4]}
15... Be6 {[%clk 0:01:47.5]} 16. f3 {[%clk 0:02:19.2]} 16... O-O-O {[%clk
0:01:42.7]} 17. a3 {[%clk 0:02:12.9]} 17... g4 {[%clk 0:01:25.5]} 18. hxg4
{[%clk 0:02:00.2]} 18... hxg4 {[%clk 0:01:25.5]} 19. f4 {[%clk 0:01:59.6]} 19...
Nh5 {[%clk 0:01:20]} 20. f5 {[%clk 0:01:59.4]} 20... Bd7 {[%clk 0:01:09.6]} 21.
b4 {[%clk 0:01:55.5]} 21... Ba7 {[%clk 0:01:09.6]} 22. b5 {[%clk 0:01:52.2]}
22... axb5 {[%clk 0:01:08.2]} 23. Bxb5 {[%clk 0:01:51.3]} 23... Qg5 {[%clk
0:00:54.6]} 24. Nc4 {[%clk 0:00:57.6]} 24... Nxg3 {[%clk 0:00:50.8]} 25. Nxg3
{[%clk 0:00:57.3]} 25... d3+ {[%clk 0:00:50.2]} 26. Rf2 {[%clk 0:00:53.4]} 26...
Bxf2+ {[%clk 0:00:47.6]} 27. Kxf2 {[%clk 0:00:52.5]} 27... Qf4+ {[%clk
0:00:47.8]} 28. Kg1 {[%clk 0:00:52.5]} 28... Qxg3 {[%clk 0:00:45.6]} 29. Qb1
{[%clk 0:00:44.9]} 29... Rh2 {[%clk 0:00:32.3]} 0-1

[Event "*** SCC Grand Prix: Titled Tuesday Blitz"]
[Site "Chess.com"]
[Date "2020.07.07"]
[Round "3"]
[White "Karateloru"]
[Black "rasmussvane"]
[Result "1-0"]
[WhiteElo "2656"]
[BlackElo "2867"]
[TimeControl "180+1"]
[EndTime "10:28:10 PDT"]
[Termination "Karateloru won on time"]

1. e4 {[%clk 0:03:00.9]} 1... c6 {[%clk 0:02:57.9]} 2. d4 {[%clk 0:02:56.2]}
2... d5 {[%clk 0:02:58.8]} 3. Nc3 {[%clk 0:02:56.7]} 3... dxe4 {[%clk
0:02:59.1]} 4. Nxe4 {[%clk 0:02:57.6]} 4... Nf6 {[%clk 0:02:59.7]} 5. Nxf6+
{[%clk 0:02:57.1]} 5... exf6 {[%clk 0:03:00.6]} 6. Bc4 {[%clk 0:02:57.5]} 6...
Bd6 {[%clk 0:02:55.8]} 7. Qe2+ {[%clk 0:02:57.3]} 7... Be7 {[%clk 0:02:55.9]} 8.
Nf3 {[%clk 0:02:55.1]} 8... O-O {[%clk 0:02:56.4]} 9. O-O {[%clk 0:02:54.4]}
9... Bd6 {[%clk 0:02:56.9]} 10. h3 {[%clk 0:02:54]} 10... Re8 {[%clk 0:02:56.6]}
11. Be3 {[%clk 0:02:53]} 11... Nd7 {[%clk 0:02:55.7]} 12. c3 {[%clk 0:02:52.1]}
12... Nf8 {[%clk 0:02:55.9]} 13. Rfe1 {[%clk 0:02:47.4]} 13... Ng6 {[%clk
0:02:55]} 14. Qd2 {[%clk 0:02:44.5]} 14... Bf5 {[%clk 0:02:54]} 15. Bd3 {[%clk
0:02:43.2]} 15... Be6 {[%clk 0:02:54.3]} 16. Rad1 {[%clk 0:02:37.3]} 16... Qd7
{[%clk 0:02:54.4]} 17. Bf1 {[%clk 0:02:37.2]} 17... Bxa2 {[%clk 0:02:38.7]} 18.
c4 {[%clk 0:02:36.8]} 18... Bb3 {[%clk 0:02:38.4]} 19. Rc1 {[%clk 0:02:35.9]}
19... a5 {[%clk 0:02:37.7]} 20. Qd3 {[%clk 0:02:30.9]} 20... a4 {[%clk
0:02:36.1]} 21. Nd2 {[%clk 0:02:29.7]} 21... Bb4 {[%clk 0:02:25.3]} 22. Nxb3
{[%clk 0:02:29.7]} 22... axb3 {[%clk 0:02:05.1]} 23. Red1 {[%clk 0:02:29]} 23...
f5 {[%clk 0:02:00.6]} 24. Qxb3 {[%clk 0:02:26.6]} 24... Bd6 {[%clk 0:01:52.6]}
25. c5 {[%clk 0:02:23.4]} 25... Bf4 {[%clk 0:01:50.9]} 26. d5 {[%clk 0:02:16.1]}
26... Bxe3 {[%clk 0:01:49.8]} 27. fxe3 {[%clk 0:02:16.4]} 27... cxd5 {[%clk
0:01:41.2]} 28. Bb5 {[%clk 0:02:15]} 28... Qe7 {[%clk 0:01:28.7]} 29. Bxe8
{[%clk 0:02:14.6]} 29... Rxe8 {[%clk 0:01:29.6]} 30. Rxd5 {[%clk 0:02:14.5]}
30... Qg5 {[%clk 0:01:18.3]} 31. Rd7 {[%clk 0:02:10]} 31... Rf8 {[%clk 0:01:01]}
32. Rf1 {[%clk 0:02:03.7]} 32... Nh4 {[%clk 0:00:26]} 33. Rf2 {[%clk 0:02:02.3]}
33... Qg3 {[%clk 0:00:20.6]} 34. Rxb7 {[%clk 0:01:54.9]} 34... h5 {[%clk
0:00:15.9]} 35. c6 {[%clk 0:01:53.8]} 35... Kh7 {[%clk 0:00:07.3]} 36. e4 {[%clk
0:01:35.9]} 36... Qg5 {[%clk 0:00:04.4]} 37. c7 {[%clk 0:01:27.2]} 37... Ra8
{[%clk 0:00:04]} 38. Qd1 {[%clk 0:01:26.9]} 38... Qe3 {[%clk 0:00:02.2]} 39. Rb8
{[%clk 0:01:24.7]} 1-0

[Event "*** SCC Grand Prix: Titled Tuesday Blitz"]
[Site "Chess.com"]
[Date "2020.07.07"]
[Round "3"]
[White "SARGISMV"]
[Black "IngOscarArdila"]
[Result "1-0"]
[WhiteElo "2481"]
[BlackElo "2174"]
[TimeControl "180+1"]
[EndTime "10:28:10 PDT"]
[Termination "SARGISMV won by resignation"]

1. Nf3 {[%clk 0:03:00.9]} 1... Nf6 {[%clk 0:02:59.6]} 2. c4 {[%clk 0:03:00.7]}
2... g6 {[%clk 0:03:00]} 3. Nc3 {[%clk 0:03:01.4]} 3... Bg7 {[%clk 0:03:00.5]}
4. e4 {[%clk 0:03:01.1]} 4... d6 {[%clk 0:03:00.9]} 5. d4 {[%clk 0:03:01.2]}
5... O-O {[%clk 0:03:01]} 6. Be2 {[%clk 0:03:01.3]} 6... Nbd7 {[%clk 0:03:01.4]}
7. Be3 {[%clk 0:03:00.6]} 7... e5 {[%clk 0:03:01.8]} 8. O-O {[%clk 0:02:58.6]}
8... Ng4 {[%clk 0:03:01.8]} 9. Bg5 {[%clk 0:02:58.8]} 9... f6 {[%clk 0:02:58.9]}
10. Bc1 {[%clk 0:02:57.2]} 10... h5 {[%clk 0:02:58.3]} 11. Nh4 {[%clk
0:02:50.3]} 11... g5 {[%clk 0:02:39.4]} 12. Nf5 {[%clk 0:02:45.8]} 12... Nb6
{[%clk 0:02:33.4]} 13. Bxg4 {[%clk 0:02:17.5]} 13... hxg4 {[%clk 0:02:30.9]} 14.
dxe5 {[%clk 0:02:18.1]} 14... dxe5 {[%clk 0:02:20.8]} 15. Qxg4 {[%clk
0:02:07.2]} 15... Bxf5 {[%clk 0:02:12.1]} 16. Qxf5 {[%clk 0:01:58]} 16... c6
{[%clk 0:01:12]} 17. c5 {[%clk 0:01:48.7]} 17... Nc8 {[%clk 0:01:00.5]} 18. Qe6+
{[%clk 0:01:33.2]} 18... Kh8 {[%clk 0:00:59.7]} 19. f4 {[%clk 0:01:27.5]} 19...
Qe7 {[%clk 0:00:48.5]} 20. Qxe7 {[%clk 0:01:14.3]} 20... Nxe7 {[%clk 0:00:48.2]}
21. fxg5 {[%clk 0:01:14.5]} 21... fxg5 {[%clk 0:00:48]} 22. Bxg5 {[%clk
0:01:13.6]} 22... Ng6 {[%clk 0:00:44.9]} 23. g3 {[%clk 0:01:06.7]} 23... Kg8
{[%clk 0:00:40]} 24. Rxf8+ {[%clk 0:01:06.2]} 24... Kxf8 {[%clk 0:00:39]} 25.
Rd1 {[%clk 0:01:06.3]} 25... Ke8 {[%clk 0:00:36.9]} 26. h4 {[%clk 0:01:03.7]}
26... Bf8 {[%clk 0:00:36.5]} 27. b4 {[%clk 0:01:02]} 27... a5 {[%clk 0:00:35.1]}
28. a3 {[%clk 0:01:02.4]} 28... axb4 {[%clk 0:00:35.1]} 29. axb4 {[%clk
0:01:03.3]} 29... Be7 {[%clk 0:00:31.9]} 30. Bxe7 {[%clk 0:01:01.5]} 30... Kxe7
{[%clk 0:00:29.3]} 31. h5 {[%clk 0:01:00]} 31... Nf8 {[%clk 0:00:26.6]} 32. Kg2
{[%clk 0:00:57.4]} 32... Ra3 {[%clk 0:00:24.4]} 33. Rd3 {[%clk 0:00:57.9]} 33...
Ne6 {[%clk 0:00:24.1]} 34. Nd5+ {[%clk 0:00:57.1]} 34... cxd5 {[%clk 0:00:21.8]}
35. Rxa3 {[%clk 0:00:56.9]} 35... dxe4 {[%clk 0:00:20.4]} 36. Ra7 {[%clk
0:00:56]} 1-0

[Event "*** SCC Grand Prix: Titled Tuesday Blitz"]
[Site "Chess.com"]
[Date "2020.07.07"]
[Round "3"]
[White "novendrapriasmoro"]
[Black "mishanick"]
[Result "1-0"]
[WhiteElo "2648"]
[BlackElo "2850"]
[TimeControl "180+1"]
[EndTime "10:28:13 PDT"]
[Termination "novendrapriasmoro won by checkmate"]

1. e4 {[%clk 0:03:00.9]} 1... c5 {[%clk 0:03:00.1]} 2. Nf3 {[%clk 0:03:00.8]}
2... d6 {[%clk 0:03:00.6]} 3. d4 {[%clk 0:03:00.6]} 3... cxd4 {[%clk 0:03:01.5]}
4. Nxd4 {[%clk 0:03:01.5]} 4... Nf6 {[%clk 0:03:02]} 5. Nc3 {[%clk 0:03:01.9]}
5... a6 {[%clk 0:03:02.6]} 6. Bg5 {[%clk 0:03:02.2]} 6... e6 {[%clk 0:03:02.4]}
7. f4 {[%clk 0:03:02.6]} 7... Qb6 {[%clk 0:03:02.5]} 8. Qd2 {[%clk 0:02:55.9]}
8... Qxb2 {[%clk 0:03:01.7]} 9. Rb1 {[%clk 0:02:54.8]} 9... Qa3 {[%clk
0:03:02.1]} 10. e5 {[%clk 0:02:53.9]} 10... dxe5 {[%clk 0:03:01.5]} 11. fxe5
{[%clk 0:02:54.8]} 11... h6 {[%clk 0:03:02.1]} 12. Bh4 {[%clk 0:02:54.4]} 12...
g5 {[%clk 0:03:02.1]} 13. Bf2 {[%clk 0:02:39.2]} 13... Ng4 {[%clk 0:03:01.3]}
14. Bg3 {[%clk 0:02:35.7]} 14... Bg7 {[%clk 0:02:59.9]} 15. Ne4 {[%clk
0:02:21.4]} 15... Nxe5 {[%clk 0:02:54.8]} 16. h4 {[%clk 0:01:47]} 16... g4
{[%clk 0:02:40.7]} 17. Be2 {[%clk 0:01:29.8]} 17... f5 {[%clk 0:01:33.9]} 18.
Rb3 {[%clk 0:01:23.8]} 18... Qe7 {[%clk 0:01:04.1]} 19. Nxf5 {[%clk 0:01:22.8]}
19... exf5 {[%clk 0:01:05]} 20. Nd6+ {[%clk 0:01:22.6]} 20... Kf8 {[%clk
0:01:05.5]} 21. Nxc8 {[%clk 0:01:22.2]} 21... Qc5 {[%clk 0:00:33]} 22. Rxb7
{[%clk 0:00:36.4]} 22... Qxc8 {[%clk 0:00:18.7]} 23. Qd6+ {[%clk 0:00:35.9]}
23... Kg8 {[%clk 0:00:19.4]} 24. Rxg7+ {[%clk 0:00:33.5]} 24... Kxg7 {[%clk
0:00:19.7]} 25. Bxe5+ {[%clk 0:00:33.9]} 25... Kg8 {[%clk 0:00:19.2]} 26. Qg6+
{[%clk 0:00:29.6]} 26... Kf8 {[%clk 0:00:19.6]} 27. Bd6# {[%clk 0:00:30.5]} 1-0

[Event "*** SCC Grand Prix: Titled Tuesday Blitz"]
[Site "Chess.com"]
[Date "2020.07.07"]
[Round "3"]
[White "LikeWater"]
[Black "jaskol95"]
[Result "1-0"]
[WhiteElo "2660"]
[BlackElo "2387"]
[TimeControl "180+1"]
[EndTime "10:28:13 PDT"]
[Termination "LikeWater won by resignation"]

1. e4 {[%clk 0:03:00.9]} 1... e6 {[%clk 0:03:00.3]} 2. d4 {[%clk 0:03:01]} 2...
d5 {[%clk 0:03:00.9]} 3. exd5 {[%clk 0:03:01.9]} 3... exd5 {[%clk 0:03:01.8]} 4.
Nf3 {[%clk 0:03:02.8]} 4... Bd6 {[%clk 0:03:01.3]} 5. c4 {[%clk 0:03:02.8]} 5...
c6 {[%clk 0:03:00.7]} 6. Nc3 {[%clk 0:03:02.5]} 6... Ne7 {[%clk 0:03:00.3]} 7.
Bd3 {[%clk 0:02:59.4]} 7... Bf5 {[%clk 0:02:56.1]} 8. Bxf5 {[%clk 0:02:45.8]}
8... Nxf5 {[%clk 0:02:57]} 9. cxd5 {[%clk 0:02:46.6]} 9... cxd5 {[%clk
0:02:48.7]} 10. Nxd5 {[%clk 0:02:46.3]} 10... O-O {[%clk 0:02:48.4]} 11. Ne3
{[%clk 0:02:18.6]} 11... Nc6 {[%clk 0:02:33.7]} 12. Nxf5 {[%clk 0:02:16.1]}
12... Qa5+ {[%clk 0:02:32.3]} 13. Bd2 {[%clk 0:02:07.5]} 13... Qxf5 {[%clk
0:02:31]} 14. O-O {[%clk 0:02:08]} 14... Qh5 {[%clk 0:02:19.6]} 15. Be3 {[%clk
0:02:07.9]} 15... Rad8 {[%clk 0:02:16.7]} 16. h3 {[%clk 0:02:08.3]} 16... Bb8
{[%clk 0:02:15.1]} 17. Qb3 {[%clk 0:02:07.5]} 17... Na5 {[%clk 0:02:06.4]} 18.
Qb4 {[%clk 0:01:58.5]} 18... Rd6 {[%clk 0:01:56.7]} 19. Ne5 {[%clk 0:01:56]}
19... Nc6 {[%clk 0:01:36.2]} 20. Nxc6 {[%clk 0:01:46.8]} 20... bxc6 {[%clk
0:01:36.1]} 21. Bf4 {[%clk 0:01:17.7]} 21... Rdd8 {[%clk 0:01:23]} 22. Bxb8
{[%clk 0:01:17.5]} 22... Rxb8 {[%clk 0:01:23.9]} 23. Qc3 {[%clk 0:01:18.2]}
23... Qd5 {[%clk 0:01:22.4]} 24. b3 {[%clk 0:01:18.6]} 24... Rfd8 {[%clk
0:01:21.4]} 25. Rfd1 {[%clk 0:01:18.1]} 25... Rbc8 {[%clk 0:01:15.9]} 26. Rac1
{[%clk 0:01:18.6]} 26... c5 {[%clk 0:01:11.3]} 27. dxc5 {[%clk 0:01:18.5]} 27...
Qxd1+ {[%clk 0:01:11.4]} 28. Rxd1 {[%clk 0:01:19.4]} 28... Rxd1+ {[%clk
0:01:11.7]} 29. Kh2 {[%clk 0:01:20.3]} 29... h5 {[%clk 0:01:04.7]} 30. h4 {[%clk
0:01:17.6]} 30... Rd5 {[%clk 0:01:01.7]} 31. b4 {[%clk 0:01:17.4]} 31... a5
{[%clk 0:00:58.7]} 32. Qc4 {[%clk 0:01:12.9]} 32... Rcd8 {[%clk 0:00:55.2]} 33.
c6 {[%clk 0:01:12.8]} 33... R5d6 {[%clk 0:00:46.1]} 34. b5 {[%clk 0:01:11.8]}
34... Rc8 {[%clk 0:00:42]} 35. Qc5 {[%clk 0:00:56]} 35... Rf6 {[%clk 0:00:39.9]}
36. Qa7 {[%clk 0:00:47.9]} 36... Rf4 {[%clk 0:00:35.8]} 37. g3 {[%clk
0:00:46.3]} 37... Rb4 {[%clk 0:00:34.6]} 38. c7 {[%clk 0:00:44.2]} 1-0

[Event "*** SCC Grand Prix: Titled Tuesday Blitz"]
[Site "Chess.com"]
[Date "2020.07.07"]
[Round "3"]
[White "Crazy_girl99"]
[Black "ValentinDragnev"]
[Result "0-1"]
[WhiteElo "2434"]
[BlackElo "2756"]
[TimeControl "180+1"]
[EndTime "10:28:13 PDT"]
[Termination "ValentinDragnev won by resignation"]

1. e4 {[%clk 0:03:00.9]} 1... e6 {[%clk 0:03:00.1]} 2. d4 {[%clk 0:03:00.6]}
2... d5 {[%clk 0:03:00.4]} 3. Nd2 {[%clk 0:03:00.7]} 3... c5 {[%clk 0:02:58.9]}
4. Ngf3 {[%clk 0:03:00.1]} 4... Nc6 {[%clk 0:02:58.3]} 5. exd5 {[%clk
0:02:59.3]} 5... exd5 {[%clk 0:02:59.2]} 6. Bb5 {[%clk 0:02:59.2]} 6... Qe7+
{[%clk 0:02:56.7]} 7. Be2 {[%clk 0:02:58.9]} 7... Qc7 {[%clk 0:02:54.4]} 8. O-O
{[%clk 0:02:57.2]} 8... Nf6 {[%clk 0:02:55]} 9. Re1 {[%clk 0:02:53.9]} 9... cxd4
{[%clk 0:02:55.2]} 10. Nb3 {[%clk 0:02:53.4]} 10... Be7 {[%clk 0:02:55.4]} 11.
Nbxd4 {[%clk 0:02:52.3]} 11... O-O {[%clk 0:02:55.4]} 12. c3 {[%clk 0:02:52]}
12... a6 {[%clk 0:02:55.1]} 13. h3 {[%clk 0:02:51.7]} 13... Ne4 {[%clk
0:02:51.5]} 14. Be3 {[%clk 0:02:51]} 14... Bf6 {[%clk 0:02:48.8]} 15. Rc1 {[%clk
0:02:46.8]} 15... Bd7 {[%clk 0:02:45.7]} 16. Bd3 {[%clk 0:02:41.6]} 16... Rfe8
{[%clk 0:02:44.9]} 17. Qc2 {[%clk 0:02:39.6]} 17... h6 {[%clk 0:02:38]} 18. Rcd1
{[%clk 0:02:36.2]} 18... Rad8 {[%clk 0:02:37.3]} 19. Qc1 {[%clk 0:02:33.9]}
19... Ne5 {[%clk 0:02:29.7]} 20. Bf4 {[%clk 0:02:12.4]} 20... Nxf3+ {[%clk
0:02:14.9]} 21. Nxf3 {[%clk 0:02:11.3]} 21... Qb6 {[%clk 0:02:14]} 22. Be3
{[%clk 0:02:05.6]} 22... Qc7 {[%clk 0:02:13.9]} 23. Bf4 {[%clk 0:02:02.8]} 23...
Qa5 {[%clk 0:02:14.4]} 24. Bb1 {[%clk 0:02:00.8]} 24... Ba4 {[%clk 0:02:00.2]}
25. b3 {[%clk 0:01:49.6]} 25... Bc6 {[%clk 0:01:56.1]} 26. c4 {[%clk 0:01:27.6]}
26... d4 {[%clk 0:01:48.5]} 27. Bxe4 {[%clk 0:00:31.5]} 27... Bxe4 {[%clk
0:01:46]} 28. Nd2 {[%clk 0:00:31.6]} 28... Bc6 {[%clk 0:01:42.3]} 29. a3 {[%clk
0:00:31.3]} 29... Qf5 {[%clk 0:01:37.6]} 30. Bg3 {[%clk 0:00:29.2]} 30... h5
{[%clk 0:01:33.9]} 31. Qb1 {[%clk 0:00:23.2]} 31... d3 {[%clk 0:01:31]} 32. Nf1
{[%clk 0:00:19.7]} 32... h4 {[%clk 0:01:29.3]} 33. Bh2 {[%clk 0:00:18.4]} 33...
Qg5 {[%clk 0:01:22.9]} 34. g4 {[%clk 0:00:18.5]} 34... hxg3 {[%clk 0:01:16]} 35.
Bxg3 {[%clk 0:00:18.6]} 35... Rxe1 {[%clk 0:01:13.4]} 36. Rxe1 {[%clk
0:00:18.7]} 36... Qf5 {[%clk 0:01:13.9]} 37. Qd1 {[%clk 0:00:17.1]} 37... Qxh3
{[%clk 0:01:12]} 38. f3 {[%clk 0:00:13.7]} 38... Bd4+ {[%clk 0:01:08]} 39. Bf2
{[%clk 0:00:13.8]} 39... Bxf3 {[%clk 0:01:04.6]} 0-1

[Event "*** SCC Grand Prix: Titled Tuesday Blitz"]
[Site "Chess.com"]
[Date "2020.07.07"]
[Round "3"]
[White "francyIM"]
[Black "bazar-wokzal"]
[Result "1-0"]
[WhiteElo "2609"]
[BlackElo "2408"]
[TimeControl "180+1"]
[EndTime "10:28:13 PDT"]
[Termination "francyIM won by resignation"]

1. d4 {[%clk 0:03:00.9]} 1... Nf6 {[%clk 0:02:59.3]} 2. c4 {[%clk 0:03:00.2]}
2... Nc6 {[%clk 0:02:59.1]} 3. Nf3 {[%clk 0:02:59.6]} 3... e6 {[%clk 0:02:59.1]}
4. Nc3 {[%clk 0:02:59.2]} 4... Bb4 {[%clk 0:02:58.4]} 5. g3 {[%clk 0:02:49.6]}
5... Bxc3+ {[%clk 0:02:54.3]} 6. bxc3 {[%clk 0:02:49.2]} 6... O-O {[%clk
0:02:53]} 7. Qd3 {[%clk 0:02:49.2]} 7... b6 {[%clk 0:02:52]} 8. Bg2 {[%clk
0:02:48.4]} 8... Ba6 {[%clk 0:02:46.6]} 9. Nd2 {[%clk 0:02:48.4]} 9... Rc8
{[%clk 0:02:40.8]} 10. e4 {[%clk 0:02:34.2]} 10... Na5 {[%clk 0:02:37.9]} 11. e5
{[%clk 0:02:32.3]} 11... Ne8 {[%clk 0:02:37.2]} 12. Ba3 {[%clk 0:02:30.9]} 12...
d6 {[%clk 0:02:19.8]} 13. exd6 {[%clk 0:02:27.7]} 13... cxd6 {[%clk 0:02:19.1]}
14. Bb4 {[%clk 0:02:11]} 14... Nxc4 {[%clk 0:02:17.3]} 15. a4 {[%clk 0:02:09.6]}
15... Rc7 {[%clk 0:02:08]} 16. a5 {[%clk 0:02:03.1]} 16... Bb5 {[%clk
0:01:52.1]} 17. axb6 {[%clk 0:01:59.5]} 17... axb6 {[%clk 0:01:51.8]} 18. O-O
{[%clk 0:01:58.2]} 18... Nxd2 {[%clk 0:01:38.2]} 19. Qxb5 {[%clk 0:01:50.6]}
19... Nxf1 {[%clk 0:01:38.3]} 20. Kxf1 {[%clk 0:01:51.5]} 20... Qd7 {[%clk
0:01:32.7]} 21. Qxb6 {[%clk 0:01:51]} 21... f5 {[%clk 0:01:10.8]} 22. Ra8 {[%clk
0:01:30.9]} 22... f4 {[%clk 0:00:58.3]} 23. Kg1 {[%clk 0:01:28.2]} 23... f3
{[%clk 0:00:53.4]} 24. Bh3 {[%clk 0:01:27.2]} 24... Rb7 {[%clk 0:00:41.3]} 25.
Qa5 {[%clk 0:01:26.5]} 25... Qf7 {[%clk 0:00:34.5]} 26. Qa2 {[%clk 0:01:20.4]}
26... Qg6 {[%clk 0:00:30.3]} 27. Qxe6+ {[%clk 0:01:16.1]} 27... Qxe6 {[%clk
0:00:25]} 28. Bxe6+ {[%clk 0:01:17]} 28... Kh8 {[%clk 0:00:22.2]} 29. h4 {[%clk
0:01:17.1]} 29... Re7 {[%clk 0:00:19.5]} 30. d5 {[%clk 0:01:16.9]} 30... g5
{[%clk 0:00:12.1]} 31. Bxd6 {[%clk 0:01:15.4]} 31... Nxd6 {[%clk 0:00:11.4]} 32.
Rxf8+ {[%clk 0:01:14.7]} 32... Kg7 {[%clk 0:00:11.9]} 33. Rg8+ {[%clk
0:01:15.6]} 33... Kf6 {[%clk 0:00:12.3]} 34. hxg5+ {[%clk 0:01:16.5]} 34... Ke5
{[%clk 0:00:12.8]} 35. Rf8 {[%clk 0:01:14.5]} 35... Ne4 {[%clk 0:00:11.5]} 36.
Rxf3 {[%clk 0:01:13.5]} 36... Ra7 {[%clk 0:00:11.3]} 37. Re3 {[%clk 0:01:13.4]}
1-0

[Event "*** SCC Grand Prix: Titled Tuesday Blitz"]
[Site "Chess.com"]
[Date "2020.07.07"]
[Round "3"]
[White "canary2016"]
[Black "VladimirBugayev"]
[Result "0-1"]
[WhiteElo "1910"]
[BlackElo "2251"]
[TimeControl "180+1"]
[EndTime "10:28:13 PDT"]
[Termination "VladimirBugayev won by checkmate"]

1. d4 {[%clk 0:03:00.9]} 1... d5 {[%clk 0:02:59.3]} 2. Bf4 {[%clk 0:03:00]} 2...
c5 {[%clk 0:02:58.7]} 3. e3 {[%clk 0:02:58.9]} 3... cxd4 {[%clk 0:02:57.5]} 4.
exd4 {[%clk 0:02:58.5]} 4... Nc6 {[%clk 0:02:58.2]} 5. c3 {[%clk 0:02:57.9]}
5... a6 {[%clk 0:02:54]} 6. Nd2 {[%clk 0:02:57.3]} 6... Nf6 {[%clk 0:02:54.4]}
7. Ngf3 {[%clk 0:02:57.2]} 7... Bg4 {[%clk 0:02:45]} 8. h3 {[%clk 0:02:53.7]}
8... Bxf3 {[%clk 0:02:39.5]} 9. Nxf3 {[%clk 0:02:52.9]} 9... e6 {[%clk 0:02:40]}
10. Bd3 {[%clk 0:02:51.8]} 10... Bd6 {[%clk 0:02:39.6]} 11. Bxd6 {[%clk
0:02:49.7]} 11... Qxd6 {[%clk 0:02:39.7]} 12. Qe2 {[%clk 0:02:49.5]} 12... O-O
{[%clk 0:02:39.1]} 13. O-O {[%clk 0:02:47.7]} 13... h6 {[%clk 0:02:35.4]} 14.
Rfe1 {[%clk 0:02:45.3]} 14... b5 {[%clk 0:02:32.7]} 15. Rac1 {[%clk 0:02:38]}
15... Nd7 {[%clk 0:02:27.8]} 16. b3 {[%clk 0:02:35.7]} 16... Rfc8 {[%clk
0:02:14.2]} 17. c4 {[%clk 0:02:33.5]} 17... bxc4 {[%clk 0:02:13.6]} 18. bxc4
{[%clk 0:02:33.3]} 18... dxc4 {[%clk 0:02:13.1]} 19. Bxc4 {[%clk 0:02:33.6]}
19... a5 {[%clk 0:01:35.2]} 20. d5 {[%clk 0:02:29.5]} 20... exd5 {[%clk
0:01:31.9]} 21. Bb5 {[%clk 0:02:28.5]} 21... Nf6 {[%clk 0:01:07.1]} 22. Qd3
{[%clk 0:02:21.4]} 22... Nb4 {[%clk 0:01:01.5]} 23. Qd2 {[%clk 0:02:21]} 23...
Rxc1 {[%clk 0:00:53.4]} 24. Rxc1 {[%clk 0:02:19.7]} 24... Rd8 {[%clk 0:00:53.2]}
25. a3 {[%clk 0:02:17.9]} 25... Na6 {[%clk 0:00:52.8]} 26. Qxa5 {[%clk
0:02:14.2]} 26... Nc5 {[%clk 0:00:49.5]} 27. Qc3 {[%clk 0:02:10.5]} 27... Nce4
{[%clk 0:00:48.7]} 28. Qd3 {[%clk 0:02:07]} 28... Qb6 {[%clk 0:00:45.5]} 29. Qe2
{[%clk 0:02:03.5]} 29... Nxf2 {[%clk 0:00:37]} 30. Qxf2 {[%clk 0:02:03.5]} 30...
Qxb5 {[%clk 0:00:37.1]} 31. Rd1 {[%clk 0:02:00.2]} 31... Qb3 {[%clk 0:00:23.2]}
32. Ra1 {[%clk 0:01:59.1]} 32... Qc3 {[%clk 0:00:17.4]} 33. Qa2 {[%clk
0:01:55.7]} 33... d4 {[%clk 0:00:16.7]} 34. a4 {[%clk 0:01:52.8]} 34... d3
{[%clk 0:00:16.4]} 35. Rd1 {[%clk 0:01:47.5]} 35... Qc5+ {[%clk 0:00:12.9]} 36.
Kh1 {[%clk 0:01:46.4]} 36... Ne4 {[%clk 0:00:12.7]} 37. Nd2 {[%clk 0:01:44.6]}
37... Nf2+ {[%clk 0:00:11.9]} 38. Kh2 {[%clk 0:01:42]} 38... Nxd1 {[%clk
0:00:11.5]} 39. a5 {[%clk 0:01:40.3]} 39... Qe5+ {[%clk 0:00:10.9]} 40. Kg1
{[%clk 0:01:38]} 40... Qe1+ {[%clk 0:00:10.7]} 41. Kh2 {[%clk 0:01:38.1]} 41...
Ne3 {[%clk 0:00:08.4]} 42. a6 {[%clk 0:01:34.3]} 42... Qxd2 {[%clk 0:00:08.3]}
43. Qxd2 {[%clk 0:01:28.1]} 43... Nf1+ {[%clk 0:00:07.5]} 44. Kg1 {[%clk
0:01:28.2]} 44... Nxd2 {[%clk 0:00:08]} 45. a7 {[%clk 0:01:27.8]} 45... Nc4
{[%clk 0:00:07.5]} 46. Kf2 {[%clk 0:01:27.3]} 46... d2 {[%clk 0:00:07.8]} 47.
a8=Q {[%clk 0:01:26.1]} 47... Rxa8 {[%clk 0:00:08.2]} 48. Ke2 {[%clk 0:01:26.4]}
48... Ra1 {[%clk 0:00:08.5]} 49. g3 {[%clk 0:01:25.9]} 49... d1=Q+ {[%clk
0:00:08.7]} 50. Kf2 {[%clk 0:01:26]} 50... Ra2# {[%clk 0:00:08.8]} 0-1